Workbook

Sheet Sheet1
A1: Translunar injection from a construction orbit
A2: translunar.ods | B2: KHL | C2: 2018/09/08
A4: 398600.4418 | B4: km3/s2 | C4: Grav parameter
A5: 6430 | B5: km | C5: Entry
A6: 8378 | B6: km | C6: Perigee
A7: 75950 | B7: km | C7: Apogee
A8: 385000 | B8: km | C8: Moon
A10: Construction Orbit
A11: =A5 -> 6430 | B11: km | C11: Entry
A12: =A6 -> 8378 | B12: km | C12: Perigee
A13: =A7 -> 75950 | B13: km | C13: Apogee
A14: =(A12+A13)/2 -> 42164 | B14: km | C14: semimajor
A15: =2*PI()*SQRT(A14^3/$A$4) -> 86164 | B15: sec | C15: period
A16: =1000*SQRT(($A$4/A14)*(A13/A12)) -> 9257 | B16: m/s | C16: perigee velocity
A17: =1000*SQRT(($A$4/A14)*(A12/A13)) -> 1021 | B17: m/s | C17: apogee velocity
A18: =1000*SQRT(2*$A$4*A11/(A13*(A13+A11))) -> 905 | B18: m/s | C18: Entry apogee velocity
A19: =1000*SQRT(2*$A$4*A13/(A11*(A13+A11))) -> 10691 | B19: m/s | C19: Entry perigee velocity
A20: =A17-A18 -> 116 | B20: m/s | C20: Entry burn delta V
A21: =(1.5/3600)*A15 -> 36 | B21: hours | C21: worst case return time
A23: Lunar Transfer Orbit
A24: =A5 -> 6430 | B24: km | C24: Entry
A25: =A6 -> 8378 | B25: km | C25: perigee
A26: =A8 -> 385000 | B26: km | C26: apogee
A27: =(A25+A26)/2 -> 196689 | B27: km | C27: semimajor
A28: =2*PI()*SQRT(A27^3/$A$4) -> 868123 | B28: sec | C28: period
A29: =1000*SQRT(($A$4/A27)*(A26/A25)) -> 9650 | B29: m/s | C29: perigee velocity
A30: =1000*SQRT(($A$4/A27)*(A25/A26)) -> 210 | B30: m/s | C30: apogee velocity
A31: =1000*SQRT(2*$A$4*A24/(A26*(A26+A24))) -> 184 | B31: m/s | C31: Entry apogee velocity
A32: =1000*SQRT(2*$A$4*A26/(A24*(A26+A24))) -> 11043 | B32: m/s | C32: Entry perigee velocity
A33: =A30-A31 -> 26 | B33: m/s | C33: Entry burn delta V
A34: =(1.5/3600)*A28 -> 362 | B34: hours | C34: worst case return time
A36: =A29-A16 -> 393 | B36: m/s | C36: perigee injection velocity from construction orbit
A37: =A32-A19 -> 352 | B37: m/s | C37: direct launch velocity difference
A38: =A36-A37 -> 41 | B38: m/s | C38: extra cost of construction orbit
